bitfinex-derivatives/quotes_SOLF0:USTF0_20240908
["timestamp","ask_amount","ask_price","bid_price","bid_amount"]
[1725753968261,13.5415,127.51,127.48,3.9222]
[1725753969963,3.9218,127.5,127.47,3.8405399]
[1725753970161,9.62,127.5,127.43,12.2672]
[1725753971569,13.5418,127.5,127.47,3.9225]
[1725753975270,13.5418,127.5,127.43,12.2672]
[1725753975271,9.62,127.5,127.46,3.9228]
[1725753975459,9.62,127.48,127.46,3.9228]
[1725753976364,13.5423,127.48,127.46,3.9228]
[1725753978566,6.27,127.47,127.46,3.9228]
[1725753979475,10.1926,127.47,127.45,3.9232]
[1725753980266,10.1926,127.47,127.44,3.9234]
[1725753980467,19.8126,127.47,127.44,3.9234]
[1725753981869,3.9233,127.45,127.43,3.9237]
[1725753982673,9.62,127.46,127.43,3.9237]
[1725753984176,3.9231,127.46,127.4,13.648]
[1725753984770,3.9231,127.46,127.43,3.9237]
[1725753985473,3.9233,127.45,127.43,3.9237]
[1725753985674,9.62,127.46,127.43,3.9237]
[1725753986073,13.5431,127.46,127.43,3.9237]
[1725753986580,6.27,127.47,127.44,3.9234]
[1725753987279,10.1928,127.47,127.44,3.9234]
[1725753987875,3.9233,127.45,127.42,3.924]
[1725753988067,3.9233,127.45,127.4,2.6355]
[1725753988468,3.9233,127.45,127.42,3.924]
[1725753990079,13.53993669,127.46,127.4,2.6355]
[1725753990976,3.9234,127.45,127.42,3.924]
[1725753991771,3.9234,127.45,127.4,2.6355]
[1725753992176,13.5431,127.46,127.4,2.6355]
[1725753992370,13.5431,127.46,127.43,3.9237]
[1725753995483,13.5431,127.46,127.44,3.9235]
[1725753997572,13.5431,127.46,127.39,13.58731462]
[1725753997573,9.62,127.45,127.39,3.96731462]
[1725753997777,3.83124018,127.46,127.37,129.08294336]
[1725753997778,9.62,127.43,127.37,129.08294336]
[1725753998179,9.62,127.43,127.41,3.9243]
[1725753999081,3.9237,127.44,127.41,3.9243]
[1725753999082,13.5437,127.44,127.41,3.9243]
[1725754005683,3.9234,127.45,127.38,9.62]
[1725754005883,17.2818,127.47,127.41,9.62]
[1725754006185,3.9232,127.46,127.43,3.9237]
[1725754009790,3.85958715,127.46,127.37,133.04369689]
[1725754009989,9.62,127.45,127.39,9.62]
[1725754010289,6.27,127.44,127.39,9.62]
[1725754010786,6.27,127.44,127.4,9.62]
[1725754011384,6.27,127.44,127.43,3.9239]
[1725754014990,6.27,127.44,127.42,3.924]
[1725754017796,6.27,127.44,127.4,9.62]
[1725754018493,6.27,127.44,127.42,3.9241]
[1725754021494,3.9233,127.45,127.42,3.9241]
[1725754022993,10.1937,127.44,127.41,3.9243]
[1725754026700,3.9239,127.43,127.4,3.9247]
[1725754032803,9.62,127.42,127.34,1.3151]
[1725754033001,9.62,127.39,127.35,3.84596471]
[1725754033202,9.62,127.39,127.33,1.4086]
[1725754033505,3.9256,127.38,127.34,7.85019269]
[1725754033998,1.3609,127.41,127.35,9.62]
[1725754034704,3.9252,127.39,127.36,3.9259]
[1725754035902,3.9249,127.4,127.37,3.9257]
[1725754036103,1.2883,127.42,127.36,9.62]
[1725754036603,10.9083,127.42,127.36,9.62]
[1725754036798,1.2883,127.42,127.36,9.62]
[1725754037604,3.9245,127.41,127.38,3.9252]
[1725754041812,6.27,127.4,127.38,3.9252]
[1725754042309,10.1949,127.4,127.37,3.9256]
[1725754042517,6.27,127.4,127.35,4.0191613]
[1725754042715,3.9252,127.39,127.34,10.9823]
[1725754043316,3.9252,127.39,127.34,14.87236309]
[1725754043519,10.1949,127.4,127.37,3.9256]
[1725754045413,6.27,127.4,127.37,3.9256]
[1725754045614,17.2479,127.4,127.34,3.89006309]
[1725754045916,17.2479,127.4,127.33,9.62]
[1725754046118,17.2479,127.4,127.33,13.59495775]
[1725754046815,3.9253,127.39,127.36,3.9259]
[1725754047021,17.2479,127.4,127.33,13.59495775]
[1725754047418,3.9256,127.38,127.35,3.9262]
[1725754051215,13.5456,127.38,127.35,3.9262]
[1725754052517,7.6279,127.4,127.3,1.3252]
[1725754052518,9.62,127.36,127.3,1.3252]
[1725754052815,9.62,127.36,127.24,7.8593]
[1725754052816,9.62,127.34,127.29,3.86514733]
[1725754053117,13.5472,127.33,127.29,3.9279]
[1725754053319,13.5472,127.33,127.29,7.77969486]
[1725754053929,3.9273,127.32,127.29,7.77969486]
[1725754054218,1.3339,127.35,127.28,9.62]
[1725754054815,1.3339,127.35,127.31,3.9274]
[1725754054816,3.9268,127.34,127.31,3.9274]
[1725754055020,3.9268,127.34,127.31,7.9446048]
[1725754055215,9.62,127.32,127.22,3.88443613]
[1725754055411,1.3252,127.37,127.31,9.62]
[1725754055722,1.3252,127.37,127.32,3.89268599]
[1725754055926,5.2511,127.37,127.34,3.9266]
[1725754056311,3.9263,127.36,127.3,9.62]
[1725754056512,10.9452,127.37,127.31,9.62]
[1725754056513,1.3252,127.37,127.31,9.62]
[1725754057210,1.3252,127.37,127.31,10.9418]
[1725754057414,1.3252,127.37,127.33,9.62]
[1725754057813,1.3252,127.37,127.34,3.9264]
[1725754058023,13.5456,127.38,127.34,3.9264]
[1725754058321,3.9257,127.37,127.34,3.9264]
[1725754064020,3.9253,127.39,127.33,9.62]
[1725754064225,3.9253,127.39,127.31,2.7288]
[1725754064226,1.2811,127.41,127.36,9.62]
[1725754064626,3.9244,127.42,127.37,9.62]
[1725754064827,3.9244,127.42,127.38,3.91092439]
[1725754065035,10.9958,127.44,127.38,3.91092439]
[1725754065220,9.62,127.43,127.38,3.9253]
[1725754065416,15.89,127.42,127.38,3.9253]
[1725754065728,6.27,127.42,127.37,9.62]
[1725754066025,6.27,127.42,127.37,13.58944882]
[1725754066225,3.9245,127.41,127.38,3.9252]
[1725754066622,6.27,127.42,127.37,13.58944882]
[1725754066831,6.27,127.42,127.41,3.9245]
[1725754067017,6.27,127.42,127.39,9.62]
[1725754067216,6.27,127.42,127.39,3.9249]
[1725754067423,6.27,127.42,127.36,9.62]
[1725754067824,10.1943,127.42,127.36,9.62]
[1725754068025,6.27,127.42,127.38,9.62]
[1725754068222,10.1944,127.42,127.36,13.62471923]
[1725754068427,10.1944,127.42,127.36,9.62]
[1725754068626,6.27,127.42,127.38,9.62]
[1725754068828,6.27,127.42,127.4,3.9247]
[1725754070427,6.27,127.42,127.39,3.925]
[1725754071029,6.27,127.42,127.4,3.9248]
[1725754072525,10.1942,127.42,127.39,3.925]
[1725754074526,3.9245,127.41,127.38,3.9252]
[1725754074926,15.89,127.42,127.32,143.653289]
[1725754075131,15.89,127.42,127.35,9.62]
[1725754075334,15.89,127.42,127.36,4.02372022]
[1725754075526,15.89,127.42,127.37,3.9255]
[1725754075527,3.9247,127.41,127.37,3.9255]
[1725754076330,3.9247,127.41,127.37,3.9256]
[1725754077732,3.9248,127.4,127.37,3.9256]
[1725754077934,15.89,127.42,127.36,3.9259]
[1725754078526,3.9253,127.39,127.36,3.9259]
[1725754078925,3.925,127.4,127.37,3.9256]
[1725754081130,6.27,127.39,127.37,3.9256]
[1725754082339,10.1951,127.39,127.36,3.9259]
[1725754082933,6.27,127.39,127.35,13.57650427]
[1725754083136,3.9255,127.38,127.35,7.88270427]
[1725754083336,9.62,127.38,127.35,3.95650427]
[1725754083542,3.9259,127.37,127.34,3.9265]
[1725754083744,3.9259,127.37,127.35,3.88094404]
[1725754083940,3.9259,127.37,127.34,3.9265]
[1725754084131,3.9266,127.35,127.32,3.9273]
[1725754084441,9.62,127.36,127.32,3.9273]
[1725754084640,13.48248767,127.36,127.32,3.9273]
[1725754084842,9.62,127.36,127.32,3.9273]
[1725754085541,3.9267,127.34,127.32,3.9273]
[1725754085742,3.9267,127.34,127.31,3.9274]
[1725754087243,3.93827662,127.37,127.31,3.9274]
[1725754087244,9.62,127.35,127.31,3.9274]
[1725754087633,9.62,127.35,127.3,3.9277]
[1725754088246,3.927,127.33,127.3,3.9277]
[1725754088737,3.9274,127.32,127.29,3.928]
[1725754090748,3.9271,127.33,127.3,3.9279]
[1725754091245,9.62,127.35,127.3,3.9279]
[1725754092554,3.9272,127.33,127.3,3.9279]
[1725754092939,9.62,127.35,127.3,3.9279]
[1725754094043,3.9272,127.33,127.3,3.9279]
[1725754095144,3.9273,127.32,127.3,3.9279]
[1725754096451,3.9273,127.32,127.29,3.9281]
[1725754097142,3.9273,127.32,127.27,14.89244859]
[1725754098052,3.9271,127.33,127.3,3.9278]
[1725754098352,3.9271,127.33,127.3,3.9276]
[1725754098549,3.9271,127.33,127.27,14.89244859]
[1725754098854,3.9271,127.33,127.3,3.9277]
[1725754099355,3.93827662,127.37,127.3,9.62]
[1725754099551,3.93827662,127.37,127.32,3.927]
[1725754100156,3.9265,127.35,127.32,3.927]
[1725754102550,3.9268,127.34,127.31,3.9274]
[1725754104755,3.9271,127.33,127.3,3.9277]
[1725754104954,9.62,127.33,127.3,3.9277]
[1725754105157,9.62,127.33,127.27,14.89244859]
[1725754105952,3.9274,127.32,127.29,3.9279]
[1725754108855,6.28,127.31,127.29,3.9279]
[1725754112855,6.28,127.31,127.3,3.9279]
[1725754113965,6.28,127.31,127.27,3.93454859]
[1725754114168,6.28,127.31,127.25,9.62]
[1725754114363,6.28,127.31,127.25,13.63116559]
[1725754114865,3.928,127.3,127.27,3.9285]
[1725754115078,3.928,127.3,127.25,13.63116559]
[1725754116859,3.928,127.3,127.27,3.9286]
[1725754117671,3.928,127.3,127.28,3.9285]
[1725754117865,10.2077,127.31,127.25,13.63116559]
[1725754118259,6.28,127.31,127.28,3.9283]
[1725754118462,3.9279,127.3,127.28,3.9283]
[1725754118667,3.9279,127.3,127.25,13.63116559]
[1725754118668,3.9279,127.3,127.25,4.01116559]
[1725754118868,3.9279,127.3,127.28,3.9285]
[1725754120565,3.9279,127.3,127.27,3.9286]
[1725754120766,6.28,127.31,127.27,3.9286]
[1725754121469,3.928,127.3,127.27,3.9286]
[1725754121669,3.928,127.3,127.28,3.9285]
[1725754122271,10.2077,127.31,127.25,13.47971795]
[1725754122773,6.28,127.31,127.3,3.9279]
[1725754134980,10.2076,127.31,127.25,3.85971795]
[1725754135176,13.5476,127.31,127.24,4.0538]
[1725754135476,13.5476,127.31,127.25,9.62]
[1725754135670,13.5476,127.31,127.28,3.9282]
[1725754136978,10.2079,127.3,127.28,3.9282]
[1725754137481,6.28,127.3,127.28,3.9282]
[1725754139171,10.208,127.3,127.28,3.9282]
[1725754141880,6.28,127.3,127.26,9.62]
[1725754143281,6.28,127.3,127.28,3.9283]
[1725754143782,6.28,127.3,127.26,9.62]
[1725754144477,6.28,127.3,127.29,3.9282]
[1725754154392,6.28,127.3,127.25,13.61104812]
[1725754154597,6.28,127.3,127.25,9.62]
[1725754154800,6.28,127.3,127.28,3.9283]
[1725754157201,13.5474,127.32,127.28,3.9283]
[1725754158100,9.62,127.32,127.28,3.9283]
[1725754158295,3.9276,127.31,127.28,3.9283]
[1725754158700,5.9,127.3,127.28,3.9283]
[1725754162209,5.9,127.3,127.28,3.9285]
[1725754163207,5.9,127.3,127.27,4.01241357]
[1725754163410,5.9,127.3,127.26,9.62]
[1725754163910,5.9,127.3,127.29,3.9282]
[1725754168918,5.9,127.3,127.29,13.5482]
[1725754182821,5.9,127.3,127.29,3.9282]
[1725754200447,5.9,127.3,127.29,13.5482]
[1725754204446,5.14110085,127.38,127.29,13.5482]
[1725754204447,7.846,127.46,127.29,9.62]
[1725754204641,508.86046907,127.54,127.37,9.62]
[1725754204642,12.2781,127.44,127.37,9.62]
[1725754204850,3.9247,127.41,127.37,13.55384714]
[1725754205738,9.62,127.43,127.37,13.55384714]
[1725754205739,2.6581,127.44,127.38,9.62]
[1725754206252,5.24,127.43,127.38,9.62]
[1725754206451,5.24,127.43,127.37,13.5456]
[1725754206745,3.9254,127.39,127.34,9.62]
[1725754206950,9.62,127.41,127.33,9.62]
[1725754207144,2.6893,127.4,127.34,3.94495233]
[1725754207747,3.9253,127.39,127.34,7.87135233]
[1725754208345,3.9253,127.39,127.35,3.9263]
[1725754208751,6.6143,127.4,127.36,3.9258]
[1725754208956,2.6893,127.4,127.35,9.62]
[1725754209156,2.6893,127.4,127.37,9.62]
[1725754209354,1.3413,127.4,127.38,7.90523407]
[1725754210055,1.3413,127.4,127.39,3.9251]
[1725754211565,3.9242,127.42,127.39,3.9251]
[1725754211761,7.8185,127.43,127.4,3.9248]
[1725754213462,7.8185,127.43,127.4,13.5448]
[1725754216967,7.8185,127.43,127.41,3.9244]
[1725754218062,11.7424,127.43,127.4,3.9246]
[1725754218269,7.8185,127.43,127.39,9.62]
[1725754218468,7.8185,127.43,127.4,9.62]
[1725754218657,5.24,127.43,127.4,9.62]
[1725754219266,5.24,127.43,127.41,3.9245]
[1725754220567,5.24,127.43,127.42,3.9242]
[1725754229862,236.19670522,127.54,127.42,13.5442]
[1725754230068,3.9225,127.48,127.45,9.62]
[1725754230270,1.3209,127.49,127.46,13.49981788]
[1725754230670,5.2431,127.49,127.46,13.5428]
[1725754231068,5.2431,127.49,127.47,3.9226]
[1725754231373,2.5803,127.52,127.48,9.62]
[1725754231585,2.5803,127.52,127.5,3.9216]
[1725754231774,1.2768,127.52,127.49,13.48809478]
[1725754231970,1.2768,127.52,127.51,9.62]
[1725754232876,5.2332,127.54,127.51,9.62]
[1725754232877,1.3125,127.54,127.51,9.62]
[1725754233177,5.2331,127.54,127.51,9.62]
[1725754233571,13.45160703,127.58,127.51,9.62]
[1725754233769,13.45160703,127.58,127.5,3.95401757]
[1725754233770,3.9201,127.56,127.52,13.5409]
[1725754235671,6.54300703,127.58,127.55,9.62]
[1725754235672,3.9198,127.57,127.55,9.62]
[1725754235872,2.7114,127.58,127.55,9.62]
[1725754236575,6.6308,127.58,127.55,13.5402]
[1725754236973,2.7114,127.58,127.56,3.9199]
[1725754237375,3.9188,127.6,127.56,3.9199]
[1725754237577,3.9188,127.6,127.57,3.9195]
[1725754241379,16.32676078,127.61,127.53,3.88352556]
[1725754241582,9.62,127.59,127.52,9.62]
[1725754241780,1.3563,127.58,127.52,9.62]
[1725754241978,3.9197,127.57,127.53,3.9205]
[1725754242784,1.3563,127.58,127.47,4.0996]
[1725754242785,9.62,127.56,127.47,4.0996]
[1725754243091,1.3486,127.55,127.51,3.9212]
[1725754244290,3.9207,127.54,127.51,3.9212]
[1725754245179,3.9209,127.53,127.5,3.9217]
[1725754248689,3.9206,127.54,127.51,3.9213]
[1725754249090,3.9206,127.54,127.51,13.5413]
[1725754250584,5.2689,127.55,127.52,3.921]
[1725754250780,1.3486,127.55,127.52,3.921]
[1725754251592,3.9207,127.54,127.49,3.87842701]
[1725754251795,3.9207,127.54,127.51,9.62]
[1725754252486,3.9207,127.54,127.51,13.5412]
[1725754254389,3.9203,127.55,127.51,9.62]
[1725754254593,1.3526,127.56,127.52,9.62]
[1725754254895,5.22827485,127.58,127.52,9.62]
[1725754255096,1.3563,127.58,127.52,9.62]
[1725754255392,3.9199,127.56,127.53,3.9206]
[1725754256590,3.9199,127.56,127.54,9.62]
[1725754256990,3.9197,127.57,127.54,13.5404]
[1725754258196,1.3563,127.58,127.53,3.9206]
[1725754258497,1.3563,127.58,127.51,9.62]
[1725754258700,3.9202,127.55,127.51,9.62]
[1725754258889,3.9202,127.55,127.52,3.9209]
[1725754260397,3.9202,127.55,127.53,3.9207]
[1725754261991,3.92,127.56,127.54,3.9205]
[1725754263293,3.92,127.56,127.53,3.9206]
[1725754264202,3.92,127.56,127.54,3.9203]
[1725754265002,3.92,127.56,127.53,3.9206]
[1725754267101,3.92,127.56,127.52,9.62]
[1725754267300,3.9197,127.57,127.54,13.5405]
[1725754267512,1.3563,127.58,127.54,13.5405]
[1725754269507,1.3563,127.58,127.47,8.03066517]
[1725754269698,10.9763,127.58,127.51,9.62]
[1725754269896,3.9203,127.55,127.51,9.62]
[1725754270098,3.9203,127.55,127.52,3.9209]
[1725754270499,3.9207,127.54,127.47,8.03066517]
[1725754270709,3.9207,127.54,127.51,13.5412]
[1725754272405,3.9207,127.54,127.52,3.9211]
[1725754276301,3.9204,127.55,127.53,9.62]
[1725754276502,1.3563,127.58,127.54,9.62]
[1725754276703,5.25755591,127.6,127.54,9.62]
[1725754276908,3.9198,127.57,127.54,17.53481705]
[1725754277300,3.9198,127.57,127.54,13.5403]
[1725754280610,3.92,127.56,127.54,3.9203]
[1725754280803,3.92,127.56,127.54,13.5403]
[1725754296807,10.921,127.6,127.5,9.62]
[1725754296808,9.62,127.57,127.5,9.62]
[1725754297138,2.6784,127.61,127.56,9.62]
[1725754297306,3.9193,127.58,127.56,9.62]
[1725754303236,3.9197,127.57,127.54,13.5403]
[1725754304429,3.9203,127.55,127.52,3.9209]
[1725754304737,9.62,127.56,127.47,4.0996]
[1725754304927,9.62,127.55,127.48,7.75375517]
[1725754305233,10.9261,127.55,127.48,13.45145517]
[1725754305636,3.9211,127.53,127.48,9.62]
[1725754306441,3.9211,127.52,127.49,3.9218]
[1725754310334,9.62,127.54,127.47,9.62]
[1725754310534,12.3257,127.54,127.47,9.62]
[1725754310927,3.9219,127.5,127.46,9.62]
[1725754311134,7.76623543,127.5,127.46,9.62]
[1725754311323,3.84433543,127.5,127.46,9.62]
[1725754311634,12.3257,127.54,127.46,13.5427]
[1725754312138,3.922,127.49,127.46,13.5427]
[1725754312739,3.922,127.49,127.47,3.9226]
[1725754313641,3.9218,127.5,127.47,3.9226]
[1725754315537,3.922,127.49,127.46,13.5428]
[1725754318547,3.922,127.49,127.47,3.9225]
[1725754324448,12.3257,127.54,127.48,17.41322977]
[1725754324449,2.7057,127.54,127.48,17.41322977]
[1725754324945,3.9216,127.51,127.48,17.41322977]
[1725754325352,3.9216,127.51,127.49,13.542]
[1725754326044,3.9216,127.51,127.49,17.43999921]
[1725754326351,1.3061,127.55,127.49,13.51799921]
[1725754326552,1.3061,127.55,127.52,9.62]
[1725754326745,5.2266,127.55,127.52,9.62]
[1725754327152,1.3061,127.55,127.51,3.9212]
[1725754327453,3.9207,127.54,127.51,13.5412]
[1725754328848,3.82481172,127.53,127.49,3.86874801]
[1725754329041,9.62,127.54,127.47,9.62]
[1725754329246,12.2968,127.54,127.47,9.62]
[1725754329752,3.9214,127.51,127.48,3.9222]
[1725754330051,3.9214,127.51,127.49,4.02056362]
[1725754334052,3.9212,127.52,127.49,7.94236362]
[1725754335053,3.9209,127.53,127.5,13.5415]
[1725754335355,9.62,127.56,127.5,9.62]
[1725754335750,3.9206,127.54,127.51,3.9212]
[1725754336348,3.92,127.56,127.51,9.62]
[1725754336552,3.92,127.56,127.53,9.62]
[1725754336852,3.92,127.56,127.53,13.5406]
[1725754339047,96.72348817,127.58,127.53,9.62]
[1725754339254,96.72348817,127.58,127.56,9.62]
[1725754340152,3.9187,127.6,127.56,13.5396]
[1725754340353,3.9187,127.6,127.56,13.61326147]
[1725754340554,12.319,127.62,127.57,9.62]
[1725754340555,2.699,127.62,127.57,9.62]
[1725754340755,10.9649,127.63,127.58,3.9193]
[1725754340956,1.3449,127.63,127.58,9.62]
[1725754341149,5.25456717,127.63,127.58,9.62]
[1725754341347,5.25456717,127.63,127.59,3.9188]
[1725754341348,5.2628,127.63,127.59,3.9188]
[1725754342064,9.16972244,127.63,127.59,3.9188]
[1725754342361,3.9181,127.62,127.59,3.9188]
[1725754350962,3.9177,127.64,127.6,9.62]
[1725754351364,6.70064457,127.65,127.6,9.62]
[1725754352167,3.9176,127.64,127.6,13.5385]
[1725754352368,6.70064457,127.65,127.6,13.5385]
[1725754352569,3.9176,127.64,127.6,13.5385]
[1725754354566,3.9177,127.63,127.6,13.5385]
[1725754363682,6.70064457,127.65,127.58,3.94574072]
[1725754363888,16.32064457,127.65,127.58,9.62]
[1725754364090,1.3514,127.64,127.58,9.62]
[1725754364790,3.9184,127.61,127.58,13.5391]
[1725754366782,3.9189,127.6,127.57,3.9194]
[1725754366975,3.9189,127.6,127.57,13.5394]
[1725754370291,3.9189,127.6,127.58,3.9192]
[1725754370982,3.9185,127.61,127.58,3.9192]
[1725754383199,3.9184,127.61,127.58,3.9192]
[1725754383398,3.93383642,127.62,127.58,3.9192]
[1725754383699,3.9188,127.6,127.57,13.5393]
[1725754384893,3.92991631,127.61,127.55,4.01537484]
[1725754384894,13.54991631,127.61,127.55,4.01537484]
[1725754385091,2.7187,127.6,127.54,9.62]
[1725754385285,2.7187,127.6,127.55,3.90365153]
[1725754385286,3.9198,127.57,127.55,3.90365153]
[1725754385701,12.3387,127.6,127.54,9.62]
[1725754385898,16.32310592,127.6,127.54,13.55579648]
[1725754386490,3.9198,127.57,127.54,13.55579648]
[1725754386695,3.9198,127.57,127.54,9.62]
[1725754387496,3.9199,127.56,127.54,9.62]
[1725754390896,3.9199,127.56,127.53,13.5405]
[1725754397699,16.32310592,127.6,127.54,9.62]
[1725754397700,6.70310592,127.6,127.54,9.62]
[1725754397900,9.62,127.63,127.56,9.62]
[1725754398102,9.62,127.63,127.5,3.9812]
[1725754398103,3.9185,127.61,127.58,9.62]
[1725754398306,7.76284498,127.64,127.58,9.62]
[1725754398501,7.76284498,127.64,127.5,3.9812]
[1725754398502,7.76284498,127.64,127.6,9.62]
[1725754398701,3.9183,127.61,127.6,9.62]
[1725754398897,3.9183,127.61,127.58,13.5391]
[1725754404506,3.9182,127.62,127.59,3.9189]
[1725754406210,3.9184,127.61,127.59,3.9189]
[1725754408213,3.9184,127.61,127.58,13.5391]
[1725754409010,16.03144498,127.64,127.57,7.80459435]
[1725754409011,9.62,127.63,127.57,7.80459435]
[1725754409216,9.62,127.6,127.5,3.9812]
[1725754409416,9.62,127.6,127.53,9.62]
[1725754409715,3.9194,127.58,127.55,3.9202]
[1725754410117,3.9194,127.58,127.55,13.5402]
[1725754410413,1.3201,127.62,127.56,9.62]
[1725754410414,10.9401,127.62,127.56,9.62]
[1725754410613,9.62,127.61,127.53,4.01490556]
[1725754410916,9.62,127.61,127.55,3.92]
[1725754412418,3.9193,127.58,127.55,3.92]
[1725754415322,9.62,127.6,127.54,7.87561513]
[1725754415617,9.62,127.6,127.54,3.9203]
[1725754418326,3.9196,127.57,127.54,3.9203]
[1725754420522,3.9193,127.58,127.55,3.9201]
[1725754421523,3.9191,127.59,127.54,9.62]
[1725754423134,3.9191,127.59,127.55,3.9199]
[1725754425640,3.9191,127.59,127.56,3.9198]
[1725754431840,3.9187,127.6,127.57,3.9194]
[1725754438134,3.919,127.59,127.56,13.5397]
[1725754438442,3.919,127.59,127.56,3.9197]
[1725754441432,1.3201,127.62,127.57,3.9196]
[1725754441433,3.9188,127.6,127.57,3.9196]
[1725754444345,3.919,127.59,127.56,9.62]
[1725754444550,3.919,127.59,127.56,13.5397]
[1725754447853,1.3201,127.62,127.55,3.92]
[1725754447854,3.9193,127.58,127.55,3.92]
[1725754461962,3.9192,127.59,127.56,3.9198]
[1725754464363,3.9188,127.6,127.57,3.9195]
[1725754464864,1.3201,127.62,127.58,9.62]
[1725754465065,6.41144498,127.64,127.58,9.62]
[1725754465268,16.03144498,127.64,127.58,9.62]
[1725754465459,3.9182,127.62,127.58,9.62]
[1725754466858,3.9182,127.62,127.59,3.9188]
[1725754468675,3.9179,127.63,127.59,3.9188]
[1725754479369,3.9181,127.62,127.59,3.9188]
[1725754488370,3.9181,127.62,127.58,9.62]
[1725754488371,3.9183,127.61,127.58,3.9192]
[1725754491782,3.9188,127.6,127.57,3.9194]
[1725754493179,7.92742406,127.6,127.57,3.9194]
[1725754499881,3.9185,127.61,127.58,3.9193]
[1725754500482,3.9182,127.62,127.59,3.9189]
[1725754500678,3.9182,127.62,127.59,13.5389]
[1725754501102,3.9182,127.62,127.55,2.6551]
[1725754501103,5.24044292,127.63,127.58,3.919]
[1725754502282,33.16,127.62,127.55,3.9201]
[1725754502488,9.62,127.61,127.55,3.9201]
[1725754502986,9.62,127.56,127.49,3.95318748]
[1725754503185,9.62,127.54,127.48,10.9632]
[1725754503388,3.98964949,127.53,127.48,14.95206536]
[1725754503687,2.7967,127.55,127.49,9.62]
[1725754503889,4.00376382,127.54,127.49,9.62]
[1725754504087,23.54,127.61,127.51,9.62]
[1725754504286,3.084993,127.6,127.53,9.62]
[1725754504477,3.85556339,127.59,127.55,9.62]
[1725754504788,3.9194,127.58,127.55,13.45321571]
[1725754505387,3.9194,127.58,127.55,9.62]
[1725754506289,3.9194,127.58,127.55,13.5402]
[1725754506888,3.9194,127.58,127.54,3.9203]
[1725754507088,3.9194,127.58,127.54,13.5403]
[1725754509091,3.9191,127.59,127.55,17.51898945]
[1725754509281,3.9191,127.59,127.55,13.54]
[1725754509485,3.9191,127.59,127.55,17.39742773]
[1725754513190,3.9188,127.6,127.56,3.9197]
[1725754513497,3.9188,127.6,127.56,9.62]
[1725754514291,3.9188,127.6,127.57,3.9195]
[1725754518200,2.6214,127.64,127.58,9.62]
[1725754518391,1.2858,127.64,127.59,9.62]
[1725754518901,1.2858,127.64,127.58,9.62]
[1725754518902,10.9058,127.64,127.58,9.62]
[1725754519703,3.89298039,127.66,127.61,9.62]
[1725754519905,3.89298039,127.66,127.62,9.62]
[1725754520091,3.9169,127.66,127.62,13.5379]
[1725754520298,1.32,127.67,127.62,9.62]
[1725754520797,9.08096715,127.67,127.63,3.9176]
[1725754520995,5.2366,127.67,127.63,3.9176]
[1725754521198,9.05940482,127.67,127.63,3.9176]
[1725754521395,5.2366,127.67,127.63,3.9176]
[1725754527307,3.9166,127.67,127.63,3.9176]
[1725754527605,3.9166,127.67,127.62,13.58112967]
[1725754527807,3.9166,127.67,127.63,3.9176]
[1725754531709,3.9166,127.67,127.64,3.9174]